fUST/lending_fUST_20241101
["ID","MTS","AMOUNT","RATE_DAILY","PERIOD"]
[341123033,1730415039291,-151.01,0.00037399,2]
[341123034,1730415039300,-151.01,0.00037399,2]
[341123035,1730415039309,-151.01,0.00037399,2]
[341123036,1730415039318,-151.01,0.00037399,2]
[341123037,1730415039327,-151.01,0.00037399,2]
[341123038,1730415039335,-151.01,0.00037399,2]
[341123039,1730415039345,-151.01,0.00037399,2]
[341123040,1730415039354,-151.01,0.00037399,2]
[341123041,1730415039363,-150.112233,0.000374,12]
[341123042,1730415039372,-151.0,0.000374,14]
[341123043,1730415039381,-151.0,0.000374,14]
[341123044,1730415039390,-285.863894,0.000374,14]
[341123045,1730415039399,-285.863894,0.000374,14]
[341123046,1730415039408,-151.0,0.000374,14]
[341123047,1730415039419,-151.0,0.000374,14]
[341123048,1730415039430,-151.0,0.000374,14]
[341123049,1730415039440,-151.0,0.000374,14]
[341123050,1730415039452,-151.0,0.000374,14]
[341123051,1730415039463,-195.496708,0.000374,14]
[341123052,1730415039472,-195.496708,0.000374,14]
[341123053,1730415039482,-151.0,0.000374,14]
[341123054,1730415039491,-151.0,0.000374,14]
[341123055,1730415039500,-151.0,0.000374,14]
[341123056,1730415039509,-151.0,0.000374,14]
[341123057,1730415039519,-90076.85680587,0.000374,120]
[341123058,1730415039528,-151.0,0.000374,14]
[341123059,1730415039537,-30000.0,0.000374,10]
[341123060,1730415039546,-500.0,0.00037473,2]
[341123061,1730415039555,-999.0,0.00037481,120]
[341123062,1730415039564,-500.0,0.00037499,14]
[341123063,1730415039574,-502.70672006,0.00037499,14]
[341123064,1730415039583,-500.0,0.00037499,14]
[341123065,1730415039592,-500.0,0.00037499,14]
[341123066,1730415039601,-500.0,0.00037499,14]
[341123067,1730415039611,-566.0,0.00037499,14]
[341123068,1730415039620,-156.97551377,0.00037499,15]
[341123069,1730415039629,-284.1170979,0.00037499,15]
[341123070,1730415039639,-474.02483388,0.00037499,15]
[341123071,1730415039648,-94474.50057112,0.000375,60]
[341123079,1730415040337,-500.0,0.00030136,5]
[341123080,1730415040346,-500.0,0.00030136,5]
[341123081,1730415040356,-500.0,0.0003041,5]
[341123082,1730415040365,-500.0,0.0003041,5]
[341123083,1730415040376,-500.0,0.00030684,5]
[341123084,1730415040384,-500.0,0.00030684,5]
[341123085,1730415040394,-500.0,0.00030958,5]
[341123086,1730415040403,-500.0,0.00031232,5]
[341123088,1730415040415,-500.0,0.00031506,5]
[341123089,1730415040424,-23264.2526833,0.000375,60]
[341123090,1730415040461,-1174.61692453,0.000375,60]
[341123117,1730415117707,163.869242,0.00013973,2]
[341123120,1730415254506,873.13,0.00024,60]
[341123122,1730415463282,52203.25106522,0.00033677,30]
[341123123,1730415603403,500.0,0.0001,2]
[341123124,1730415603786,500.0,0.0001,2]
[341123125,1730415604148,500.0,0.0001,2]
[341123126,1730415604531,167.35029656,0.0001,2]
[341123128,1730415643081,161.312679,0.00013973,2]
[341123199,1730416232389,-1000.0,0.00027397,30]
[341123202,1730416232400,-435.14716961,0.00030137,30]
[341123204,1730416232413,-564.85283039,0.00030137,30]
[341123206,1730416232423,-182.224547,0.00030757,2]
[341123208,1730416232433,-171.226482,0.00030757,2]
[341123210,1730416232443,-166.666666,0.00030927,2]
[341123212,1730416232453,-660.0,0.00031434,2]
[341123214,1730416232462,-400.0,0.00031466,2]
[341123216,1730416232472,-500.0,0.00031467,5]
[341123217,1730416232481,-400.0,0.00031467,2]
[341123219,1730416232492,-185.64960616,0.00031467,5]
[341123222,1730416232506,-314.35039384,0.00031467,5]
[341123224,1730416232518,-500.0,0.00031467,3]
[341123226,1730416232529,-322.0,0.00031468,2]
[341123228,1730416232538,-19384.4989796,0.00031468,2]
[341123230,1730416232547,-182.224547,0.00031526,2]
[341123232,1730416232556,-256.33871737,0.0003168,2]
[341123234,1730416232565,-500.0,0.00031741,5]
[341123236,1730416232574,-500.0,0.00031741,5]
[341123238,1730416232583,-500.0,0.00031741,3]
[341123239,1730416232592,-186.352451,0.00031954,2]
[341123240,1730416232601,-543.03707212,0.00032015,5]
[341123242,1730416232614,-500.0,0.00032015,3]
[341123244,1730416232627,-500.0,0.00032289,3]
[341123246,1730416232637,-247.245142,0.00032291,2]
[341123248,1730416232646,-182.224547,0.00032295,2]
[341123250,1730416232656,-171.226482,0.00032295,2]
[341123252,1730416232666,-166.666666,0.00032332,2]
[341123254,1730416232675,-247.245142,0.00032379,2]
[341123256,1730416232684,-247.245142,0.00032468,2]
[341123258,1730416232695,-247.245142,0.00032556,2]
[341123260,1730416232705,-500.0,0.00032563,3]
[341123262,1730416232714,-247.245142,0.00032645,2]
[341123264,1730416232724,-247.245142,0.00032734,2]
[341123266,1730416232733,-500.0,0.00032749,5]
[341123268,1730416232742,-500.0,0.00032749,5]
[341123270,1730416232752,-247.245142,0.00032822,2]
[341123272,1730416232761,-500.0,0.00032837,3]
[341123274,1730416232770,-500.0,0.00032876,2]
[341123276,1730416232779,-247.245142,0.00032911,2]
[341123278,1730416232792,-247.245142,0.00032999,2]
[341123280,1730416232802,-500.0,0.00033023,5]
[341123281,1730416232811,-500.0,0.00033023,5]
[341123283,1730416232820,-247.245142,0.00033088,2]
[341123285,1730416232830,-500.0,0.00033111,3]
[341123287,1730416232839,-247.245142,0.00033176,2]
[341123289,1730416232849,-247.245142,0.00033265,2]
[341123290,1730416232858,-500.0,0.00033297,5]
[341123291,1730416232867,-247.245142,0.00033353,2]
[341123292,1730416232878,-393.38,0.00033385,3]
[341123293,1730416232887,-247.245142,0.00033442,2]
[341123294,1730416232896,-247.245142,0.00033531,2]
[341123295,1730416232906,-521.74,0.00033571,5]
[341123296,1730416232914,-247.245142,0.00033619,2]
[341123297,1730416232923,-247.245142,0.00033708,2]
[341123298,1730416232933,-100.53486634,0.00033737,2]
[341123299,1730416238641,-66.13179966,0.00033737,2]
[341123300,1730416238650,-247.245142,0.00033796,2]
[341123301,1730416238660,-560.0,0.00033863,2]
[341123302,1730416238670,-247.245142,0.00033885,2]
[341123303,1730416238679,-528.0,0.00033924,2]
[341123304,1730416238688,-1148.0,0.00033924,2]
[341123305,1730416238698,-2376.0,0.00033924,2]
[341123306,1730416238708,-231.00765654,0.00033924,7]
[341123307,1730416238717,-247.245142,0.00033973,2]
[341123308,1730416238727,-1137.67,0.000344,2]
[341123309,1730416238736,-560.0,0.00034613,2]
[341123310,1730416238746,-166.666666,0.00035143,2]
[341123311,1730416238755,-374.45242979,0.00035616,5]
[341123312,1730416238766,-125.54757021,0.00035616,5]
[341123313,1730416238778,-167.0,0.00036,2]
[341123314,1730416238788,-500.0,0.00036166,2]
[341123315,1730416238798,-595.08708656,0.00036419,5]
[341123316,1730416238807,-783.0,0.00036442,2]
[341123317,1730416238816,-500.0,0.00036794,5]
[341123318,1730416238825,-167.0,0.00037397,2]
[341123319,1730416238834,-207.11535496,0.00037472,2]
[341123320,1730416238843,-500.0,0.00037473,5]
[341123321,1730416238852,-577.59349659,0.00037473,5]
[341123322,1730416238862,-500.0,0.00037473,5]
[341123323,1730416238871,-500.0,0.00037473,5]
[341123324,1730416238880,-500.0,0.00037473,2]
[341123325,1730416238890,-1000.0,0.00037499,120]
[341123326,1730416238899,-999.0,0.00037499,120]
[341123327,1730416238908,-7366.13755046,0.000375,60]
[341123328,1730416238921,-50564.78284711,0.000375,60]
[341123330,1730416240530,-122072.31046182,0.000375,60]
[341123331,1730416240581,-59171.6189069,0.000375,60]
[341123332,1730416240592,-37616.04662798,0.000375,60]
[341123334,1730416243510,-165.69228397,0.00037472,2]
[341123335,1730416243520,-215.0,0.00037499,2]
[341123336,1730416243530,-1480.55771603,0.000375,60]
[341123337,1730416243542,-1152.0,0.000375,60]
[341123347,1730416246417,-322.0,0.000375,60]
[341123348,1730416246572,-6987.39748913,0.000375,60]
[341123452,1730416715908,161.312679,0.00013973,2]
[341123554,1730417432627,-166.666669,0.00032828,2]
[341123556,1730417432639,-250.000015,0.00033184,2]
[341123558,1730417432649,-186.352452,0.00033285,2]
[341123560,1730417432660,-175.64424,0.0003356,2]
[341123562,1730417432670,-1037.11604495,0.00033695,30]
[341123564,1730417432679,-319.19,0.00033695,2]
[341123566,1730417432689,-660.0,0.00033793,2]
[341123568,1730417432699,-400.0,0.00034364,2]
[341123570,1730417432709,-400.0,0.00034364,2]
[341123572,1730417432719,-5922.3422156,0.00034365,2]
[341123575,1730417432729,-1023.91,0.000344,2]
[341123577,1730417432738,-3000.0,0.000344,19]
[341123578,1730417432747,-431.0,0.0003441,2]
[341123579,1730417432758,-3000.0,0.0003441,19]
[341123580,1730417432769,-3000.0,0.0003442,19]
[341123581,1730417432781,-5773.808942,0.0003443,19]
[341123582,1730417432792,-501.0,0.00036,4]
[341123583,1730417432802,-4926.84259905,0.000368,14]
[341123584,1730417432815,-1655.98740095,0.000368,14]
[341123585,1730417432825,-560.0,0.0003687,2]
[341123586,1730417432834,-500.0,0.00036879,15]
[341123587,1730417432844,-500.0,0.00036879,15]
[341123588,1730417432858,-643.99416701,0.00036879,15]
[341123589,1730417432869,-12626.69081675,0.0003688,30]
[341123590,1730417432881,-1693.26730576,0.0003688,30]
[341123595,1730417438762,-1252.50584317,0.0003688,30]
[341123596,1730417438773,-35283.67327968,0.0003688,30]
[341123597,1730417438786,-4345.31550248,0.0003688,30]
[341123607,1730417440705,-144798.54725216,0.0003688,30]
[341123608,1730417440715,-154.00510436,0.0003688,14]
[341123609,1730417440724,-150.01,0.00037498,2]
[341123610,1730417440734,-150.01,0.00037498,2]
[341123611,1730417440743,-500.0,0.00037499,15]
[341123612,1730417440753,-500.0,0.00037499,15]
[341123613,1730417440762,-500.0,0.00037499,15]
[341123614,1730417440771,-500.0,0.00037499,15]
[341123615,1730417440781,-500.0,0.00037499,15]
[341123616,1730417440790,-500.0,0.00037499,15]
[341123617,1730417440799,-335.98638968,0.00037499,15]
[341123618,1730417440809,-500.0,0.00037499,15]
[341123619,1730417440818,-500.0,0.00037499,2]
[341123620,1730417440828,-999.0,0.00037499,120]
[341123621,1730417440838,-1000.0,0.00037499,120]
[341123622,1730417440847,-96888.94916485,0.000375,60]
[341123623,1730417440862,-99787.32747783,0.000375,60]
[341123635,1730417443618,-6759.6034726,0.000375,60]
[341123643,1730417446643,-1544.44300055,0.00034,2]
[341123644,1730417446658,-1046.0092666,0.00034,2]
[341123645,1730417446669,-151.74158025,0.00037498,2]
[341123646,1730417446679,-8780.57986162,0.000375,60]
[341123647,1730417446690,-324.52087,0.000375,60]
[341123652,1730417688114,2370.0,0.0002,2]
[341123653,1730417728004,161.312679,0.00013973,2]
[341123705,1730418631837,-1000.0,0.000289,12]
[341123706,1730418631849,-1000.0,0.000294,12]
[341123707,1730418631859,-1000.0,0.000299,12]
[341123708,1730418631868,-1000.0,0.000304,12]
[341123710,1730418631877,-172.318092,0.00030757,2]
[341123712,1730418631890,-203.386361,0.00030757,2]
[341123714,1730418631900,-1000.0,0.000309,12]
[341123716,1730418631909,-203.386361,0.00031142,2]
[341123718,1730418631920,-400.0,0.00031398,2]
[341123720,1730418631931,-400.0,0.00031398,2]
[341123721,1730418631942,-1000.0,0.000314,12]
[341123723,1730418631951,-250.0,0.00031468,2]
[341123725,1730418631961,-203.386361,0.00031526,2]
[341123728,1730418631973,-172.318092,0.00031526,2]
[341123730,1730418631984,-250.0,0.00031555,2]
[341123732,1730418631993,-250.0,0.00031641,2]
[341123734,1730418632003,-166.666666,0.00031713,2]
[341123735,1730418632013,-250.0,0.00031727,2]
[341123737,1730418632022,-250.0,0.00031813,2]
[341123739,1730418632031,-250.0,0.000319,2]
[341123740,1730418632040,-1000.0,0.000319,12]
[341123741,1730418632050,-203.386361,0.00031911,2]
[341123742,1730418632060,-250.0,0.00031986,2]
[341123743,1730418632071,-174.775793,0.00032071,2]
[341123744,1730418632082,-250.0,0.00032072,2]
[341123745,1730418632091,-250.0,0.00032159,2]
[341123746,1730418632101,-186.352451,0.00032182,2]
[341123747,1730418632111,-639.0383598,0.00032226,2]
[341123748,1730418632123,-10557.3006372,0.00032226,2]
[341123749,1730418632133,-250.0,0.00032245,2]
[341123750,1730418632142,-203.386361,0.00032295,2]
[341123751,1730418632153,-172.318092,0.00032295,2]
[341123752,1730418632163,-250.0,0.00032331,2]
[341123753,1730418632173,-1000.0,0.000324,12]
[341123754,1730418632183,-250.0,0.00032418,2]
[341123755,1730418632192,-250.0,0.00032504,2]
[341123756,1730418632202,-166.666666,0.00032578,2]
[341123757,1730418632211,-250.0,0.0003259,2]
[341123758,1730418632220,-250.0,0.00032676,2]
[341123759,1730418632230,-250.0,0.00032763,2]
[341123760,1730418632242,-250.0,0.00032849,2]
[341123761,1730418632254,-1000.0,0.000329,12]
[341123762,1730418632264,-250.0,0.00032935,2]
[341123763,1730418632276,-163.645106,0.00032942,2]
[341123764,1730418632287,-163.645106,0.00032957,2]
[341123765,1730418632297,-163.645106,0.00032972,2]
[341123766,1730418632306,-163.645106,0.00032987,2]
[341123767,1730418632323,-163.645106,0.00033002,2]
[341123768,1730418632336,-163.645106,0.00033017,2]
[341123769,1730418632351,-250.0,0.00033022,2]
[341123770,1730418632363,-163.645106,0.00033032,2]
[341123771,1730418632372,-163.645106,0.00033047,2]
[341123772,1730418632382,-163.645106,0.00033062,2]
[341123773,1730418632391,-163.645106,0.00033077,2]
[341123774,1730418632400,-163.645106,0.00033092,2]
[341123775,1730418632409,-163.645106,0.00033107,2]
[341123776,1730418632419,-250.0,0.00033108,2]
[341123777,1730418632428,-1000.0,0.000334,12]
[341123778,1730418632437,-166.666666,0.00033442,2]
[341123779,1730418632446,-560.0,0.00033791,2]
[341123780,1730418632458,-166.666666,0.00034307,2]
[341123781,1730418632468,-3000.0,0.000344,19]
[341123782,1730418632479,-921.52,0.000345,2]
[341123783,1730418632489,-560.0,0.00034538,2]
[341123784,1730418632500,-166.666666,0.00035172,2]
[341123785,1730418632510,-166.666666,0.00036036,2]
[341123786,1730418632521,-783.0,0.00036367,2]
[341123787,1730418632532,-998.80143827,0.00036386,2]
[341123788,1730418632542,-242.90238792,0.00036387,14]
[341123789,1730418632551,-642.007,0.00036387,7]
[341123790,1730418632562,-2412.57303481,0.00036387,7]
[341123869,1730418642872,-1441.10596519,0.00036387,7]
[341123870,1730418642883,-528.0,0.00036597,2]
[341123871,1730418642892,-2396.0,0.00036597,2]
[341123872,1730418642902,-1148.0,0.00036597,2]
[341123873,1730418642911,-151.4671872,0.00036685,2]
[341123874,1730418642922,-151.4671872,0.00036685,2]
[341123875,1730418642932,-335.14906155,0.00036879,2]
[341123876,1730418642941,-500.0,0.00037064,5]
[341123877,1730418642950,-131.09853106,0.00037205,2]
[341123884,1730418645777,-21.90146894,0.00037205,2]
[341123886,1730418645787,-153.0,0.00037205,2]
[341123887,1730418645798,-153.0,0.00037205,2]
[341123889,1730418645808,-153.0,0.00037205,2]
[341123890,1730418645818,-153.0,0.00037205,2]
[341123891,1730418645828,-153.0,0.00037205,2]
[341123892,1730418645838,-534.00699324,0.0003739,2]
[341123893,1730418645850,-534.00699324,0.00037395,2]
[341123894,1730418645861,-847.35230814,0.00037399,2]
[341123895,1730418645871,-297.73223644,0.000374,2]
[341123897,1730418748164,161.312679,0.00013973,2]
[341123983,1730419837988,-251.89,0.000252,2]
[341123984,1730419838001,-1477.17040474,0.000252,2]
[341123986,1730419838139,-953.84113845,0.000252,2]
[341124039,1730419840033,-967.891042,0.000252,2]
[341124052,1730419843505,-1887.20741481,0.000252,2]
[341124053,1730419843514,-400.0,0.00031399,2]
[341124054,1730419843524,-400.0,0.00031399,2]
[341124056,1730419843533,-1546.434135,0.000314,12]
[341124057,1730419843542,-1000.0,0.000319,12]
[341124059,1730419843552,-1000.0,0.000324,12]
[341124061,1730419843561,-1000.0,0.000329,12]
[341124062,1730419843570,-1000.0,0.000334,12]
[341124063,1730419843579,-186.352452,0.00033671,2]
[341124064,1730419843588,-176.0,0.00033792,2]
[341124065,1730419843597,-165.967015,0.00034151,2]
[341124066,1730419843606,-165.967015,0.00034256,2]
[341124067,1730419843615,-165.967015,0.0003436,2]
[341124068,1730419843625,-165.967015,0.00034465,2]
[341124069,1730419843634,-829.36,0.000345,2]
[341124070,1730419843644,-560.0,0.00034539,2]
[341124071,1730419843654,-165.967015,0.0003457,2]
[341124072,1730419843664,-165.967015,0.00034674,2]
[341124073,1730419843674,-165.967015,0.00034779,2]
[341124074,1730419843683,-165.967015,0.00034884,2]
[341124075,1730419843693,-165.967015,0.00034988,2]
[341124076,1730419843703,-165.967015,0.00035093,2]
[341124077,1730419843712,-165.967015,0.00035198,2]
[341124078,1730419843722,-165.967015,0.00035302,2]
[341124079,1730419843732,-165.967015,0.00035407,2]
[341124080,1730419843742,-165.967015,0.00035512,2]
[341124081,1730419843751,-165.967015,0.00035616,2]
[341124082,1730419843762,-165.967015,0.00035721,2]
[341124083,1730419843773,-165.967015,0.00035826,2]
[341124084,1730419843781,-165.967015,0.0003593,2]
[341124085,1730419843791,-153.0,0.00036247,2]
[341124086,1730419843800,-153.0,0.00036247,2]
[341124087,1730419843810,-153.0,0.00036247,2]
[341124088,1730419843819,-153.0,0.00036247,2]
[341124089,1730419843832,-371.0918499,0.00036247,2]
[341124090,1730419843841,-6868.75043562,0.00036999,2]
[341124091,1730419843851,-242.785451,0.00037068,2]
[341124092,1730419843860,-306.0,0.00037068,2]
[341124093,1730419843870,-313.734833,0.00037068,2]
[341124094,1730419843879,-786.76808588,0.0003739,2]
[341124095,1730419843889,-500.0,0.00037472,5]
[341124096,1730419843898,-602.41497244,0.00037473,5]
[341124097,1730419843908,-500.0,0.00037473,5]
[341124098,1730419843917,-500.0,0.00037473,2]
[341124099,1730419843927,-500.0,0.00037473,5]
[341124100,1730419843937,-500.0,0.00037489,15]
[341124101,1730419843947,-186.69499806,0.00037489,15]
[341124102,1730419843957,-327.56505669,0.00037489,15]
[341124103,1730419843967,-253.26394055,0.00037489,15]
[341124104,1730419843977,-500.0,0.00037489,15]
[341124105,1730419843987,-500.0,0.00037489,15]
[341124106,1730419843997,-501.29226484,0.00037489,7]
[341124107,1730419844007,-250.0,0.00037489,15]
[341124108,1730419844016,-500.0,0.00037489,15]
[341124109,1730419844027,-206.6965296,0.00037489,15]
[341124110,1730419844037,-500.0,0.00037489,15]
[341124111,1730419844047,-500.0,0.00037489,15]
[341124112,1730419844058,-500.0,0.00037489,15]
[341124113,1730419844068,-500.0,0.00037489,15]
[341124114,1730419844078,-500.0,0.00037489,15]
[341124115,1730419844088,-293.78273269,0.00037489,15]
[341124116,1730419844099,-500.0,0.00037489,15]
[341124117,1730419844108,-7.16058893,0.00037489,15]
[341124125,1730419845912,-492.83941107,0.00037489,15]
[341124126,1730419845923,-500.0,0.00037489,15]
[341124127,1730419845933,-500.0,0.00037489,15]
[341124128,1730419845944,-500.0,0.00037489,15]
[341124129,1730419845954,-200.0,0.00037489,15]
[341124130,1730419845963,-500.0,0.00037489,7]
[341124131,1730419845973,-43000.0,0.0003749,5]
[341124132,1730419845983,-161.93492527,0.0003749,14]
[341124133,1730419845994,-380.22950918,0.00037499,15]
[341124134,1730419846004,-166.57587128,0.00037499,15]
[341124135,1730419846014,-161.00131238,0.00037499,15]
[341124136,1730419846033,-254.86474808,0.00037499,15]
[341124137,1730419846045,-250.0,0.00037499,15]
[341124138,1730419846055,-300.0,0.00037499,15]
[341124139,1730419846066,-999.0,0.00037499,120]
[341124140,1730419846077,-1000.0,0.00037499,120]
[341124141,1730419846088,-3639.63967097,0.000375,60]
[341124142,1730419846164,-32000.0,0.000375,60]
[341124143,1730419846178,-6668.02186494,0.000375,60]
[341124287,1730421046072,-2769.99999901,0.00026852,2]
[341124288,1730421046082,-151.949325,0.00032884,2]
[341124289,1730421046092,-50.02881089,0.00033432,2]
[341124290,1730421046104,-101.92051411,0.00033432,2]
[341124291,1730421046114,-721.87206195,0.00033533,2]
[341124363,1730422195601,10000.0,0.00033721,30]
[341124397,1730422232492,-1602.3087739,0.00032382,2]
[341124398,1730422232504,-180.0,0.00033,60]
[341124399,1730422232514,-180.0,0.000335,120]
[341124401,1730422232525,-180.0,0.000335,15]
[341124403,1730422232535,-400.0,0.0003372,2]
[341124405,1730422232547,-6782.2879322,0.00033721,7]
[341124407,1730422232557,-161.93492528,0.00033721,7]
[341124409,1730422232567,-151.949325,0.0003398,2]
[341124411,1730422232576,-688.42207518,0.0003436,2]
[341124413,1730422232585,-3000.0,0.000344,19]
[341124415,1730422232595,-3000.0,0.0003441,19]
[341124416,1730422232609,-3000.0,0.0003442,19]
[341124419,1730422232620,-5000.0,0.00034428,2]
[341124420,1730422232629,-500.0,0.00034428,5]
[341124423,1730422232638,-3000.0,0.0003443,19]
[341124425,1730422232648,-3000.0,0.0003444,19]
[341124427,1730422232660,-3000.0,0.0003445,20]
[341124428,1730422232671,-3000.0,0.0003446,20]
[341124430,1730422232681,-151.0,0.0003446,14]
[341124432,1730422232691,-3000.0,0.0003447,20]
[341124434,1730422232701,-2717.7120678,0.00034479,2]
[341124437,1730422232712,-151.0,0.00034479,14]
[341124439,1730422232723,-151.0,0.00034479,14]
[341124441,1730422232733,-151.0,0.00034479,14]
[341124443,1730422232744,-151.0,0.00034479,14]
[341124445,1730422232755,-151.0,0.00034479,14]
[341124447,1730422232770,-151.0,0.00034479,14]
[341124449,1730422232780,-151.0,0.00034479,14]
[341124451,1730422232791,-151.0,0.00034479,14]
[341124453,1730422232802,-151.0,0.00034479,14]
[341124456,1730422232814,-151.0,0.00034479,14]
[341124458,1730422232824,-151.0,0.00034479,14]
[341124460,1730422232834,-175.947038,0.00034479,14]
[341124462,1730422232843,-175.947038,0.00034479,14]
[341124464,1730422232852,-233.829098,0.00034479,14]
[341124465,1730422232862,-233.829098,0.00034479,14]
[341124467,1730422232872,-3000.0,0.0003448,20]
[341124470,1730422232884,-151.0,0.0003448,14]
[341124472,1730422232893,-746.43,0.000345,2]
[341124474,1730422232905,-151.949325,0.00034528,2]
[341124476,1730422232915,-688.42207512,0.00035437,2]
[341124478,1730422232926,-151.0,0.00036514,14]
[341124480,1730422232936,-688.42207512,0.00036514,2]
[341124483,1730422232950,-151.4671872,0.00036712,2]
[341124485,1730422232960,-528.0,0.00036818,2]
[341124487,1730422232969,-2396.0,0.00036818,2]
[341124489,1730422232978,-1148.0,0.00036818,2]
[341124491,1730422232988,-151.0,0.00036818,14]
[341124493,1730422232998,-151.0,0.00036818,14]
[341124495,1730422233009,-257.277504,0.00036818,14]
[341124497,1730422233019,-257.277504,0.00036818,14]
[341124499,1730422233028,-151.0,0.00036818,14]
[341124501,1730422233037,-151.0,0.00036818,14]
[341124503,1730422233046,-151.0,0.00036818,14]
[341124505,1730422233057,-151.0,0.00036818,14]
[341124507,1730422233068,-151.0,0.00036818,14]
[341124509,1730422233078,-175.947038,0.00036818,14]
[341124512,1730422233087,-175.947038,0.00036818,14]
[341124513,1730422233207,-233.829098,0.00036818,14]
[341124516,1730422233218,-233.829098,0.00036818,14]
[341124517,1730422233229,-151.0,0.00036903,14]
[341124519,1730422233238,-151.0,0.00036903,14]
[341124520,1730422233248,-151.0,0.00036903,14]
[341124522,1730422233257,-151.0,0.00036903,14]
[341124523,1730422233267,-151.0,0.00036903,5]
[341124524,1730422233276,-151.0,0.00036903,14]
[341124525,1730422233286,-151.0,0.00036903,14]
[341124526,1730422233295,-151.0,0.00036903,14]
[341124527,1730422233304,-151.0,0.00036903,14]
[341124528,1730422233314,-151.0,0.00036903,14]
[341124529,1730422233323,-151.0,0.00036903,14]
[341124530,1730422233431,-151.0,0.00036903,14]
[341124531,1730422233447,-151.0,0.00036903,14]
[341124532,1730422233458,-151.0,0.00036903,14]
[341124533,1730422233467,-151.0,0.00036903,14]
[341124534,1730422233478,-265.759151,0.00036903,14]
[341124535,1730422233489,-151.0,0.00036903,14]
[341124536,1730422233499,-151.0,0.00036904,14]
[341124537,1730422233508,-151.0,0.00036904,14]
[341124538,1730422233518,-207.79755021,0.00036904,14]
[341124539,1730422233527,-151.0,0.00036904,14]
[341124540,1730422233536,-151.0,0.00036986,14]
[341124541,1730422233546,-151.0,0.00036986,5]
[341124542,1730422233556,-151.0,0.00036986,14]
[341124543,1730422233566,-151.0,0.00036986,14]
[341124544,1730422233575,-151.0,0.00036986,14]
[341124545,1730422233585,-151.0,0.00036986,14]
[341124546,1730422233594,-151.0,0.00036986,14]
[341124547,1730422233604,-151.0,0.00036986,14]
[341124548,1730422233613,-151.0,0.00036986,14]
[341124549,1730422233623,-151.0,0.00036986,14]
[341124550,1730422233632,-151.0,0.00036986,14]
[341124551,1730422233642,-151.0,0.00036986,14]
[341124552,1730422233651,-257.277504,0.00036986,14]
[341124553,1730422233662,-257.277504,0.00036986,14]
[341124554,1730422233671,-257.277504,0.00036986,14]
[341124555,1730422233681,-257.277504,0.00036986,14]
[341124556,1730422233691,-151.0,0.00036986,14]
[341124557,1730422233701,-151.0,0.00036986,14]
[341124558,1730422233711,-151.0,0.00036986,14]
[341124559,1730422233721,-2000.0,0.00036986,120]
[341124560,1730422233730,-2000.0,0.00036986,120]
[341124561,1730422233740,-2000.0,0.00036986,120]
[341124562,1730422233749,-2000.0,0.00036986,120]
[341124563,1730422233759,-2000.0,0.00036986,120]
[341124564,1730422233768,-151.0,0.00036986,14]
[341124565,1730422233778,-222.920149,0.00036986,14]
[341124566,1730422233787,-151.0,0.00036986,14]
[341124567,1730422233797,-151.0,0.00036986,14]
[341124568,1730422233806,-151.0,0.00036986,14]